[Event "European Womens-ch 2025"]
[Site "Rhodes"]
[Date "2025.03.31"]
[Round "1.61"]
[White "Lach, Aleksandra"]
[Black "Harutyunyan, Gabriela"]
[Result "1/2-1/2"]
[Annotator "RC"]
[ECO "B23"]
[WhiteElo "2208"]
[BlackElo "1793"]
[PlyCount "281"]
[EventDate "2025.03.29"]
[EventType "swiss"]
[EventCountry "GRE"]
[SourceTitle "playchess.com"]
[Source "ChessBase"]
[SourceQuality "1"]
[TimeControl "40/5400+30:1800+30"]

1. e4 {[%emt 0:00:11]} c5 {[%emt 0:00:20]} 2. Nc3 {[%emt 0:00:44]} Nc6 {[%emt 0:00:40]} 3. f4 {[%emt 0:04:56]} e6 {[%emt 0:05:01]} 4. Nf3 {[%emt 0:01:49]} d5 {[%emt 0:01:18]} 5. Bb5 {[%emt 0:01:02]} Nf6 {[%emt 0:05:45]} 6. d3 {[%emt 0:04:16]} Qb6 {[%emt 0:10:01]} 7. Ne5 {[%emt 0:11:17]} Be7 {[%emt 0:04:24]} 8. O-O {[%emt 0:05:59]} O-O {[%emt 0:04:24]} 9. Bxc6 {[%emt 0:10:18]} bxc6 {[%emt 0:00:31]} 10. Kh1 {[%emt 0:00:56]} Ba6 {[%emt 0:09:23]} 11. Qf3 {[%emt 0:10:30]} Rfd8 {[%emt 0:13:18]} 12. b3 {[%emt 0:11:13]} Rac8 {[%emt 0:08:27]} 13. Bb2 {[%emt 0:04:23]} c4 {[%emt 0:05:03]} 14. dxc4 {[%emt 0:03:45]} dxc4 {[%emt 0:01:46]} 15. Na4 {[%emt 0:06:22]} Qb7 {[%emt 0:03:52]} 16. Nxc4 {[%emt 0:08:26]} Bxc4 {[%emt 0:01:31]} 17. bxc4 {[%emt 0:00:02]} Qa6 {[%emt 0:03:06]} 18. Bxf6 {[%emt 0:02:04]} Bxf6 {[%emt 0:01:00]} 19. e5 {[%emt 0:00:04]} Be7 {[%emt 0:01:00]} 20. Nc3 {[%emt 0:03:54]} Qxc4 {[%emt 0:01:53]} 21. f5 {[%emt 0:00:24]} exf5 {[%emt 0:04:59]} 22. Qxf5 {[%emt 0:00:02]} g6 {[%emt 0:01:17]} 23. Qf3 {[%emt 0:00:22]} Rd4 {[%emt 0:01:52]} 24. Rab1 {[%emt 0:05:28]} Rf8 {[%emt 0:02:07]} 25. Rb7 {[%emt 0:00:47]} Bg5 {[%emt 0:00:39]} 26. Ne2 {[%emt 0:02:02]} Re4 {[%emt 0:01:43]} 27. Ng3 {[%emt 0:00:33]} Rf4 {[%emt 0:01:30]} 28. Qd3 {[%emt 0:00:26]} Rxf1+ {[%emt 0:01:14]} 29. Nxf1 {[%emt 0:00:27]} Qxd3 {[%emt 0:00:30]} 30. cxd3 {[%emt 0:00:02]} Rd8 {[%emt 0:00:25]} 31. g3 {[%emt 0:02:05]} Rxd3 {[%emt 0:00:48]} 32. Rxa7 {[%emt 0:00:07]} Rd5 {[%emt 0:00:39]} 33. h4 {[%emt 0:00:35]} Bh6 {[%emt 0:00:50]} 34. Nh2 {[%emt 0:00:57]} Rxe5 {[%emt 0:00:45]} 35. Ng4 {[%emt 0:00:09]} Re1+ {[%emt 0:00:08]} 36. Kg2 {[%emt 0:00:06]} Bf8 {[%emt 0:01:42]} 37. Rc7 {[%emt 0:01:25]} Re2+ {[%emt 0:01:38]} 38. Kf3 {[%emt 0:00:34]} Re6 {[%emt 0:00:57]} 39. a4 {[%emt 0:00:33]} h5 {[%emt 0:01:19]} 40. Nf2 {[%emt 0:00:00]} c5 {[%emt 0:00:00]} 41. Ne4 {[%emt 0:08:59]} Ra6 {[%emt 0:01:24]} 42. Nc3 {[%emt 0:03:14]} Bg7 {[%emt 0:00:45]} 43. Rc8+ {[%emt 0:00:12]} Kh7 {[%emt 0:01:11]} 44. Ne4 {[%emt 0:00:20]} Bd4 {[%emt 0:00:28]} 45. Ng5+ {[%emt 0:00:59]} Kg7 {[%emt 0:00:12]} 46. Rc7 {[%emt 0:00:01]} Rxa4 {[%emt 0:00:38]} 47. Rxf7+ {[%emt 0:01:33]} Kg8 {[%emt 0:00:07]} 48. Rd7 {[%emt 0:01:06]} Ra3+ {[%emt 0:00:21]} 49. Kg2 {[%emt 0:01:09]} Be5 {[%emt 0:01:05]} 50. Nf3 {[%emt 0:00:46]} Bf6 {[%emt 0:00:32]} 51. Nd2 {[%emt 0:01:05]} Ra2 {[%emt 0:00:32]} 52. Kf3 {[%emt 0:00:56]} Ra3+ {[%emt 0:01:00]} 53. Kf4 {[%emt 0:01:54]} Ra1 {[%emt 0:01:50]} 54. Rc7 {[%emt 0:03:47]} Rc1 {[%emt 0:04:18]} 55. Ne4 {[%emt 0:05:33]} Rf1+ {[%emt 0:00:52]} 56. Ke3 {[%emt 0:00:06]} Bd4+ {[%emt 0:00:06]} 57. Ke2 {[%emt 0:01:02]} Rg1 {[%emt 0:01:54]} 58. Kf3 {[%emt 0:00:38]} Rf1+ {[%emt 0:00:14]} 59. Kg2 {[%emt 0:01:02]} Rc1 {[%emt 0:00:34]} 60. Kf3 {[%emt 0:02:24]} c4 {[%emt 0:01:34]} 61. Kf4 {[%emt 0:01:45]} Re1 {[%emt 0:01:30]} 62. Rxc4 {[%emt 0:00:32]} Be3+ {[%emt 0:00:23]} 63. Kf3 {[%emt 0:01:40]} Bh6 {[%emt 0:00:50]} 64. Nd6 {[%emt 0:01:17]} Re3+ {[%emt 0:00:47]} 65. Kf2 {[%emt 0:00:25]} Rd3 {[%emt 0:22:08]} 66. Ne4 {[%emt 0:00:41]} Kf7 {[%emt 0:00:00]} 67. Rc7+ {[%emt 0:00:36]} Kf8 {[%emt 0:00:00]} 68. Nf6 {[%emt 0:00:40]} Rd6 {[%emt 0:00:00]} 69. Rc8+ {[%emt 0:00:30]} Kf7 {[%emt 0:00:00]} 70. Ne4 {[%emt 0:00:01]} Re6 {[%emt 0:00:00]} 71. Kf3 {[%emt 0:00:12]} Ra6 {[%emt 0:00:00]} 72. Rc7+ {[%emt 0:00:08]} Kf8 {[%emt 0:00:00]} 73. Nc5 {[%emt 0:00:55]} Ra3+ {[%emt 0:00:00]} 74. Kg2 {[%emt 0:00:08]} Ra2+ {[%emt 0:00:00]} 75. Kh3 {[%emt 0:01:24]} Ra3 {[%emt 0:00:00]} 76. Rh7 {[%emt 0:00:33]} Bd2 {[%emt 0:00:00]} 77. Ne6+ {[%emt 0:00:31]} Ke8 {[%emt 0:00:00]} 78. Rg7 {[%emt 0:00:43]} Be1 {[%emt 0:00:00]} 79. Rxg6 {[%emt 0:00:10]} Kf7 {[%emt 0:00:00]} 80. Nf4 {[%emt 0:00:02]} Bd2 {[%emt 0:00:00]} 81. Rg5 {[%emt 0:00:19]} Bxf4 {[%emt 0:00:00]} 82. Rf5+ {[%emt 0:00:18]} Kg6 {[%emt 0:00:00]} 83. Rxf4 {[%emt 0:00:01]} Ra2 {[%emt 0:00:00]} 84. Rb4 {[%emt 0:00:07]} Kf5 {[%emt 0:00:00]} 85. Rb6 {[%emt 0:00:42]} Ra5 {[%emt 0:00:00]} 86. Rh6 {[%emt 0:00:44]} Ke4 {[%emt 0:00:00]} 87. Rg6 {[%emt 0:00:44]} Rb5 {[%emt 0:00:00]} 88. Rf6 {[%emt 0:00:31]} Ke5 {[%emt 0:00:00]} 89. Rf3 {[%emt 0:00:41]} Rb4 {[%emt 0:00:00]} 90. Rf8 {[%emt 0:00:10]} Rb5 {[%emt 0:00:00]} 91. Rf7 {[%emt 0:00:37]} Ra5 {[%emt 0:00:00]} 92. Rf2 {[%emt 0:00:50]} Ra3 {[%emt 0:00:00]} 93. Kg2 {[%emt 0:00:19]} Rb3 {[%emt 0:00:00]} 94. Rf8 {[%emt 0:00:24]} Rb2+ {[%emt 0:00:00]} 95. Kh3 {[%emt 0:00:04]} Rb5 {[%emt 0:00:00]} 96. Rg8 {[%emt 0:01:17]} Kf6 {[%emt 0:00:00]} 97. Re8 {[%emt 0:00:31]} Rb2 {[%emt 0:00:00]} 98. Re3 {[%emt 0:00:20]} Rb4 {[%emt 0:00:00]} 99. Rf3+ {[%emt 0:00:05]} Kg6 {[%emt 0:00:38]} 100. Ra3 {[%emt 0:00:11]} Kf6 {[%emt 0:02:15]} 101. Kg2 {[%emt 0:00:28]} Kf5 {[%emt 0:01:04]} 102. Kf3 {[%emt 0:01:36]} Rb5 {[%emt 0:00:20]} 103. Ra4 {[%emt 0:00:41]} Rb3+ {[%emt 0:00:09]} 104. Kg2 {[%emt 0:00:01]} Rb2+ {[%emt 0:00:14]} 105. Kh3 {[%emt 0:00:03]} Rb3 {[%emt 0:00:32]} 106. Ra6 {[%emt 0:00:23]} Rb5 {[%emt 0:00:14]} 107. Ra3 {[%emt 0:00:16]} Rb2 {[%emt 0:00:39]} 108. Ra5+ {[%emt 0:00:17]} Kg6 {[%emt 0:00:09]} 109. Ra6+ {[%emt 0:00:57]} Kg7 {[%emt 0:00:14]} 110. Re6 {[%emt 0:00:38]} Ra2 {[%emt 0:00:24]} 111. Re3 {[%emt 0:01:07]} Ra4 {[%emt 0:00:40]} 112. Kg2 {[%emt 0:00:35]} Ra2+ {[%emt 0:00:28]} 113. Kf3 {[%emt 0:00:08]} Ra4 {[%emt 0:01:07]} 114. Re4 {[%emt 0:00:24]} Ra1 {[%emt 0:01:23]} 115. Rb4 {[%emt 0:00:50]} Rf1+ {[%emt 0:01:19]} 116. Ke4 {[%emt 0:00:18]} Rg1 {[%emt 0:00:28]} 117. Kf4 {[%emt 0:00:19]} Ra1 {[%emt 0:01:00]} 118. Rb7+ {[%emt 0:00:58]} Kg6 {[%emt 0:00:38]} 119. Rb6+ {[%emt 0:00:09]} Kg7 {[%emt 0:00:24]} 120. Re6 {[%emt 0:00:08]} Ra4+ {[%emt 0:00:32]} 121. Re4 {[%emt 0:00:34]} Ra1 {[%emt 0:00:23]} 122. Kf5 {[%emt 0:00:19]} Ra5+ {[%emt 0:00:36]} 123. Re5 {[%emt 0:00:35]} Ra3 {[%emt 0:00:28]} 124. Kf4 {[%emt 0:00:30]} Kg6 {[%emt 0:01:00]} 125. Re6+ {[%emt 0:00:32]} Kg7 {[%emt 0:00:13]} 126. Re4 {[%emt 0:00:39]} Ra1 {[%emt 0:00:34]} 127. g4 {[%emt 0:01:20]} Rf1+ {[%emt 0:01:52]} 128. Kg5 {[%emt 0:00:17]} hxg4 {[%emt 0:00:40]} 129. h5 {[%emt 0:00:46]} g3 {[%emt 0:02:32]} 130. h6+ {[%emt 0:00:09]} Kh8 {[%emt 0:01:41]} 131. Re8+ {[%emt 0:00:48]} Kh7 {[%emt 0:00:11]} 132. Re7+ {[%emt 0:00:12]} Kh8 {[%emt 0:00:23]} 133. Re8+ {[%emt 0:00:49]} Kh7 {[%emt 0:00:08]} 134. Re7+ {[%emt 0:00:01]} Kh8 {[%emt 0:00:16]} 135. Kg6 {[%emt 0:00:51]} Rf8 {[%emt 0:00:15]} 136. Rh7+ {[%emt 0:00:50]} Kg8 {[%emt 0:00:17]} 137. Rg7+ {[%emt 0:00:06]} Kh8 {[%emt 0:00:05]} 138. Rh7+ {[%emt 0:00:27]} Kg8 {[%emt 0:00:12]} 139. Rg7+ {[%emt 0:00:01]} Kh8 {[%emt 0:00:10]} 140. Rh7+ {[%emt 0:00:03]} Kg8 {[%emt 0:00:11]} 141. Rg7+ {[%emt 0:00:02]} 1/2-1/2

[Event "European Womens-ch 2025"]
[Site "Rhodes"]
[Date "2025.03.31"]
[Round "1.62"]
[White "Recica, Jona"]
[Black "Mamedjarova, Turkan"]
[Result "0-1"]
[Annotator "RC"]
[ECO "B01"]
[WhiteElo "1716"]
[BlackElo "2206"]
[PlyCount "64"]
[EventDate "2025.03.29"]
[EventType "swiss"]
[EventCountry "GRE"]
[SourceTitle "playchess.com"]
[Source "ChessBase"]
[SourceQuality "1"]
[TimeControl "40/5400+30:1800+30"]

1. e4 {[%emt 0:00:02]} d5 {[%emt 0:00:11]} 2. exd5 {[%emt 0:00:09]} Qxd5 {[%emt 0:00:05]} 3. Nc3 {[%emt 0:00:06]} Qd6 {[%emt 0:00:08]} 4. Nf3 {[%emt 0:00:52]} Nf6 {[%emt 0:00:12]} 5. Bc4 {[%emt 0:02:05]} e6 {[%emt 0:02:56]} 6. d4 {[%emt 0:04:00]} Be7 {[%emt 0:03:53]} 7. Be3 {[%emt 0:04:00]} a6 {[%emt 0:03:44]} 8. Qd2 {[%emt 0:04:18]} b5 {[%emt 0:01:19]} 9. Bd3 {[%emt 0:16:47]} Bb7 {[%emt 0:02:04]} 10. Ne5 {[%emt 0:08:44]} Nbd7 {[%emt 0:06:04]} 11. f4 {[%emt 0:05:37]} c5 {[%emt 0:03:34]} 12. Nxd7 {[%emt 0:06:03]} Qxd7 {[%emt 0:03:57]} 13. dxc5 {[%emt 0:06:32]} Qc6 {[%emt 0:05:04]} 14. b4 {[%emt 0:03:41]} Rd8 {[%emt 0:04:10]} 15. Qe2 {[%emt 0:03:50]} O-O {[%emt 0:02:52]} 16. O-O {[%emt 0:01:33]} Rfe8 {[%emt 0:03:44]} 17. Rf3 {[%emt 0:06:05]} g6 {[%emt 0:01:52]} 18. Rg3 {[%emt 0:02:53]} Bf8 {[%emt 0:00:48]} 19. Nxb5 {[%emt 0:02:54]} axb5 {[%emt 0:04:56]} 20. Bxb5 {[%emt 0:00:07]} Qe4 {[%emt 0:00:05]} 21. Bxe8 {[%emt 0:00:37]} Nxe8 {[%emt 0:02:03]} 22. Qf3 {[%emt 0:03:49]} Qxb4 {[%emt 0:00:54]} 23. c6 {[%emt 0:02:44]} Qc3 {[%emt 0:47:25]} 24. Rf1 {[%emt 0:09:36]} Bxc6 {[%emt 0:00:00]} 25. Qf2 {[%emt 0:00:34]} Qc4 {[%emt 0:00:00]} 26. c3 {[%emt 0:01:34]} Nf6 {[%emt 0:00:00]} 27. Rh3 {[%emt 0:00:57]} Bb5 {[%emt 0:00:00]} 28. Rc1 {[%emt 0:02:11]} Rd3 {[%emt 0:00:00]} 29. Qh4 {[%emt 0:01:21]} Rxe3 {[%emt 0:00:00]} 30. Qxf6 {[%emt 0:00:13]} Rxh3 {[%emt 0:00:00]} 31. gxh3 {[%emt 0:00:02]} Bc5+ {[%emt 0:00:00]} 32. Kg2 {[%emt 0:00:59]} Qe2+ {[%emt 0:00:00]} 0-1

[Event "European Womens-ch 2025"]
[Site "Rhodes"]
[Date "2025.03.31"]
[Round "1.63"]
[White "Dwilewicz, Katarzyna"]
[Black "Saraci, Ndriqona"]
[Result "1-0"]
[Annotator "RC"]
[ECO "B01"]
[WhiteElo "2203"]
[BlackElo "1692"]
[PlyCount "37"]
[EventDate "2025.03.29"]
[EventType "swiss"]
[EventCountry "GRE"]
[SourceTitle "playchess.com"]
[Source "ChessBase"]
[SourceQuality "1"]
[TimeControl "40/5400+30:1800+30"]

1. e4 {[%emt 0:00:04]} d5 {[%emt 0:00:11]} 2. exd5 {[%emt 0:00:46]} Qxd5 {[%emt 0:00:12]} 3. Nc3 {[%emt 0:00:27]} Qd6 {[%emt 0:01:23]} 4. d4 {[%emt 0:00:45]} c6 {[%emt 0:02:41]} 5. Nf3 {[%emt 0:02:09]} Nf6 {[%emt 1:28:33]} 6. Ne5 {[%emt 0:04:00]} Bf5 {[%emt 0:00:00]} 7. Bc4 {[%emt 0:05:53]} Nd5 {[%emt 0:00:00]} 8. Qf3 {[%emt 0:03:26]} e6 {[%emt 0:00:00]} 9. Nxd5 {[%emt 0:09:10]} cxd5 {[%emt 0:00:00]} 10. Bd3 {[%emt 0:00:49]} Nd7 {[%emt 0:00:00]} 11. O-O {[%emt 0:08:33]} Nxe5 {[%emt 0:00:00]} 12. dxe5 {[%emt 0:00:57]} Qxe5 {[%emt 0:00:00]} 13. Bf4 {[%emt 0:02:46]} Qf6 {[%emt 0:00:00]} 14. Bb5+ {[%emt 0:00:21]} Kd8 {[%emt 0:00:00]} 15. Rad1 {[%emt 0:07:43]} a6 {[%emt 0:00:00]} 16. Qe3 {[%emt 0:07:03]} Kc8 {[%emt 0:00:00]} 17. Bg5 {[%emt 0:17:20]} Qg6 {[%emt 0:00:00]} 18. Qc3+ {[%emt 0:01:36]} Kb8 {[%emt 0:00:00]} 19. Qe5+ {[%emt 0:02:58]} 1-0

[Event "European Womens-ch 2025"]
[Site "Rhodes"]
[Date "2025.03.31"]
[Round "1.64"]
[White "Korinioti, Myrto"]
[Black "Gaboyan, Susanna"]
[Result "0-1"]
[Annotator "RC"]
[ECO "B33"]
[WhiteElo "1667"]
[BlackElo "2200"]
[PlyCount "124"]
[EventDate "2025.03.29"]
[EventType "swiss"]
[EventCountry "GRE"]
[SourceTitle "playchess.com"]
[Source "ChessBase"]
[SourceQuality "1"]
[TimeControl "40/5400+30:1800+30"]

1. e4 {[%emt 0:00:17]} c5 {[%emt 0:00:07]} 2. Nf3 {[%emt 0:00:10]} Nc6 {[%emt 0:00:06]} 3. d4 {[%emt 0:00:08]} cxd4 {[%emt 0:00:08]} 4. Nxd4 {[%emt 0:00:18]} Nf6 {[%emt 0:00:06]} 5. Nc3 {[%emt 0:00:11]} e5 {[%emt 0:00:07]} 6. Ndb5 {[%emt 0:00:16]} d6 {[%emt 0:00:09]} 7. Bg5 {[%emt 0:00:13]} a6 {[%emt 0:00:07]} 8. Na3 {[%emt 0:00:08]} b5 {[%emt 0:00:07]} 9. Nd5 {[%emt 0:00:09]} Be7 {[%emt 0:00:06]} 10. Bxf6 {[%emt 0:00:13]} Bxf6 {[%emt 0:00:06]} 11. c3 {[%emt 0:00:25]} Bg5 {[%emt 0:00:37]} 12. Nc2 {[%emt 0:01:16]} Ne7 {[%emt 0:00:07]} 13. Nxe7 {[%emt 0:00:27]} Qxe7 {[%emt 0:00:11]} 14. Nb4 {[%emt 0:03:18]} O-O {[%emt 0:00:46]} 15. Nd5 {[%emt 0:06:09]} Qb7 {[%emt 0:00:32]} 16. Be2 {[%emt 0:02:27]} Be6 {[%emt 0:01:24]} 17. O-O {[%emt 0:04:11]} f5 {[%emt 0:02:38]} 18. Bf3 {[%emt 0:03:24]} Bxd5 {[%emt 0:00:31]} 19. Qxd5+ {[%emt 0:00:41]} Qxd5 {[%emt 0:00:08]} 20. exd5 {[%emt 0:00:09]} e4 {[%emt 0:01:41]} 21. Be2 {[%emt 0:01:46]} f4 {[%emt 0:03:06]} 22. a4 {[%emt 0:15:38]} f3 {[%emt 0:00:45]} 23. gxf3 {[%emt 0:00:57]} exf3 {[%emt 0:00:08]} 24. Bd3 {[%emt 0:01:04]} Rab8 {[%emt 0:06:50]} 25. axb5 {[%emt 0:07:55]} axb5 {[%emt 0:00:09]} 26. Ra5 {[%emt 0:02:18]} b4 {[%emt 0:00:43]} 27. c4 {[%emt 0:00:38]} Bf6 {[%emt 0:08:18]} 28. b3 {[%emt 0:05:11]} Bd4 {[%emt 0:00:26]} 29. Re1 {[%emt 0:04:16]} Rbe8 {[%emt 0:01:50]} 30. Rxe8 {[%emt 0:02:39]} Rxe8 {[%emt 0:00:07]} 31. Kf1 {[%emt 0:07:48]} Bc3 {[%emt 0:01:58]} 32. Kg1 {[%emt 0:02:20]} Re1+ {[%emt 0:00:59]} 33. Bf1 {[%emt 0:00:24]} Bd4 {[%emt 0:00:13]} 34. Ra2 {[%emt 0:01:36]} Rb1 {[%emt 0:00:28]} 35. Rd2 {[%emt 0:01:53]} Bc3 {[%emt 0:02:57]} 36. Rd3 {[%emt 0:00:49]} Rxb3 {[%emt 0:00:07]} 37. Rxf3 {[%emt 0:00:11]} Rb1 {[%emt 0:03:53]} 38. Kg2 {[%emt 0:27:37]} Bf6 {[%emt 0:03:33]} 39. Re3 {[%emt 0:00:00]} b3 {[%emt 0:03:25]} 40. Bd3 {[%emt 0:00:00]} Rd1 {[%emt 0:00:00]} 41. Bxh7+ {[%emt 0:00:00]} Kxh7 {[%emt 0:05:41]} 42. Rxb3 {[%emt 0:00:00]} Bd4 {[%emt 0:02:00]} 43. f3 {[%emt 0:00:00]} Rg1+ {[%emt 0:02:28]} 44. Kh3 {[%emt 0:00:00]} Rc1 {[%emt 0:00:56]} 45. Rb4 {[%emt 0:02:50]} Be5 {[%emt 0:00:39]} 46. Kg4 {[%emt 0:04:45]} Bxh2 {[%emt 0:01:19]} 47. Kf5 {[%emt 0:06:14]} Rc3 {[%emt 0:02:35]} 48. Ke4 {[%emt 0:00:56]} Bg1 {[%emt 0:00:39]} 49. Kf4 {[%emt 0:01:14]} Kg6 {[%emt 0:00:55]} 50. Ra4 {[%emt 0:01:17]} Kf6 {[%emt 0:00:47]} 51. Rb4 {[%emt 0:00:44]} Bc5 {[%emt 0:02:23]} 52. Ra4 {[%emt 0:00:40]} Ra3 {[%emt 0:00:57]} 53. Rxa3 {[%emt 0:01:10]} Bxa3 {[%emt 0:00:33]} 54. Ke4 {[%emt 0:00:56]} Kg5 {[%emt 0:00:39]} 55. f4+ {[%emt 0:00:47]} Kg4 {[%emt 0:00:36]} 56. f5 {[%emt 0:01:00]} Bc5 {[%emt 0:00:35]} 57. f6 {[%emt 0:01:08]} gxf6 {[%emt 0:00:36]} 58. Kd3 {[%emt 0:00:39]} Kg3 {[%emt 0:00:36]} 59. Ke4 {[%emt 0:00:55]} Kg4 {[%emt 0:00:33]} 60. Kd3 {[%emt 0:00:39]} Kf3 {[%emt 0:00:38]} 61. Kd2 {[%emt 0:00:45]} Bb4+ {[%emt 0:01:15]} 62. Kd1 {[%emt 0:01:53]} Ke3 {[%emt 0:00:35]} 0-1

[Event "European Womens-ch 2025"]
[Site "Rhodes"]
[Date "2025.03.31"]
[Round "1.65"]
[White "Mgeladze, Kesaria"]
[Black "Kaka, Rengina Tsampika"]
[Result "1-0"]
[Annotator "RC"]
[ECO "B01"]
[WhiteElo "2200"]
[BlackElo "1509"]
[PlyCount "97"]
[EventDate "2025.03.29"]
[EventType "swiss"]
[EventCountry "GRE"]
[SourceTitle "playchess.com"]
[Source "ChessBase"]
[SourceQuality "1"]
[TimeControl "40/5400+30:1800+30"]

1. e4 {[%emt 0:00:04]} d5 {[%emt 0:00:17]} 2. exd5 {[%emt 0:00:05]} Qxd5 {[%emt 0:00:18]} 3. Nc3 {[%emt 0:00:04]} Qa5 {[%emt 0:00:19]} 4. d4 {[%emt 0:00:08]} Nf6 {[%emt 0:00:15]} 5. Nf3 {[%emt 0:00:04]} Bf5 {[%emt 0:00:14]} 6. Bc4 {[%emt 0:03:19]} e6 {[%emt 0:00:27]} 7. Bd2 {[%emt 0:00:33]} c6 {[%emt 0:00:37]} 8. Nd5 {[%emt 0:00:30]} Qd8 {[%emt 0:00:35]} 9. Nxf6+ {[%emt 0:00:06]} Qxf6 {[%emt 0:00:45]} 10. Qe2 {[%emt 0:00:07]} Bd6 {[%emt 0:01:08]} 11. Bg5 {[%emt 0:01:51]} Qg6 {[%emt 0:01:07]} 12. d5 {[%emt 0:00:14]} cxd5 {[%emt 0:03:46]} 13. Bxd5 {[%emt 0:00:34]} Nc6 {[%emt 0:01:53]} 14. Bxc6+ {[%emt 0:06:01]} bxc6 {[%emt 0:00:51]} 15. Qd2 {[%emt 0:00:03]} Bc7 {[%emt 0:02:02]} 16. Nh4 {[%emt 0:01:44]} Qh5 {[%emt 0:01:40]} 17. Nxf5 {[%emt 0:00:22]} exf5 {[%emt 0:01:27]} 18. Qe3+ {[%emt 0:02:56]} Kf8 {[%emt 0:21:13]} 19. Qc5+ {[%emt 0:04:40]} Kg8 {[%emt 0:03:33]} 20. Qxc6 {[%emt 0:00:19]} Ba5+ {[%emt 0:09:55]} 21. c3 {[%emt 0:01:42]} Rb8 {[%emt 0:05:45]} 22. Bf4 {[%emt 0:02:39]} Rd8 {[%emt 0:04:15]} 23. O-O {[%emt 0:02:54]} h6 {[%emt 0:06:26]} 24. a4 {[%emt 0:02:23]} Kh7 {[%emt 0:02:46]} 25. Qb5 {[%emt 0:01:13]} Qg4 {[%emt 0:09:35]} 26. Qxa5 {[%emt 0:05:38]} Qxf4 {[%emt 0:00:33]} 27. Qxa7 {[%emt 0:00:04]} Qc4 {[%emt 0:03:19]} 28. Qe3 {[%emt 0:10:42]} Rhe8 {[%emt 0:04:36]} 29. Qf3 {[%emt 0:02:35]} g6 {[%emt 0:02:47]} 30. a5 {[%emt 0:00:58]} Ra8 {[%emt 0:02:52]} 31. b4 {[%emt 0:00:25]} Qb5 {[%emt 0:02:13]} 32. Rfd1 {[%emt 0:02:56]} Ra7 {[%emt 0:02:06]} 33. Rd5 {[%emt 0:05:20]} Qa4 {[%emt 0:02:58]} 34. Qd1 {[%emt 0:01:32]} Rae7 {[%emt 0:01:23]} 35. h3 {[%emt 0:04:50]} Qxd1+ {[%emt 0:01:38]} 36. Rdxd1 {[%emt 0:00:24]} Ra8 {[%emt 0:00:32]} 37. b5 {[%emt 0:00:24]} Re5 {[%emt 0:01:02]} 38. Rdb1 {[%emt 0:00:10]} Kg7 {[%emt 0:00:46]} 39. b6 {[%emt 0:00:06]} Re7 {[%emt 0:00:29]} 40. b7 {[%emt 0:00:00]} Rb8 {[%emt 0:00:00]} 41. a6 {[%emt 0:00:12]} g5 {[%emt 0:01:35]} 42. a7 {[%emt 0:00:06]} Rexb7 {[%emt 0:00:44]} 43. axb8=Q {[%emt 0:00:10]} Rxb8 {[%emt 0:01:17]} 44. Rxb8 {[%emt 0:00:06]} f6 {[%emt 0:00:17]} 45. Ra7+ {[%emt 0:00:15]} Kg6 {[%emt 0:00:13]} 46. g4 {[%emt 0:00:04]} h5 {[%emt 0:00:37]} 47. Rg8+ {[%emt 0:00:07]} Kh6 {[%emt 0:00:16]} 48. Rh8+ {[%emt 0:00:09]} Kg6 {[%emt 0:00:35]} 49. gxh5# {[%emt 1:13:12]} 1-0

[Event "European Womens-ch 2025"]
[Site "Rhodes"]
[Date "2025.03.31"]
[Round "1.66"]
[White "Lamprianou, Marianna"]
[Black "Ibrahimova, Sabina"]
[Result "0-1"]
[Annotator "RC"]
[ECO "B23"]
[WhiteElo "1498"]
[BlackElo "2199"]
[PlyCount "46"]
[EventDate "2025.03.29"]
[EventType "swiss"]
[EventCountry "GRE"]
[SourceTitle "playchess.com"]
[Source "ChessBase"]
[SourceQuality "1"]
[TimeControl "40/5400+30:1800+30"]

1. e4 {[%emt 0:00:03]} c5 {[%emt 0:00:41]} 2. Nc3 {[%emt 0:00:28]} g6 {[%emt 0:00:32]} 3. f4 {[%emt 0:01:13]} Bg7 {[%emt 0:00:33]} 4. b3 {[%emt 0:02:03]} Nc6 {[%emt 0:01:20]} 5. Bb5 {[%emt 0:01:12]} Nd4 {[%emt 0:01:59]} 6. Be2 {[%emt 0:07:35]} d5 {[%emt 0:04:17]} 7. d3 {[%emt 0:07:51]} dxe4 {[%emt 0:12:18]} 8. dxe4 {[%emt 0:00:24]} Nxb3 {[%emt 0:01:35]} 9. Bb2 {[%emt 0:06:49]} Nxa1 {[%emt 0:01:39]} 10. Qxa1 {[%emt 0:01:41]} Nf6 {[%emt 0:02:03]} 11. e5 {[%emt 0:03:01]} Nd5 {[%emt 0:08:48]} 12. Bb5+ {[%emt 0:02:56]} Bd7 {[%emt 0:01:11]} 13. Bc4 {[%emt 0:04:53]} Ne3 {[%emt 0:04:33]} 14. Bd3 {[%emt 0:04:09]} Nxg2+ {[%emt 0:00:44]} 15. Kf2 {[%emt 0:01:13]} Nxf4 {[%emt 0:00:09]} 16. Be4 {[%emt 0:01:40]} O-O {[%emt 0:01:19]} 17. Bxb7 {[%emt 0:01:29]} Rb8 {[%emt 0:00:12]} 18. Bf3 {[%emt 0:02:07]} Bxe5 {[%emt 0:01:18]} 19. Nge2 {[%emt 0:02:43]} Nxe2 {[%emt 0:01:30]} 20. Bxe2 {[%emt 0:00:26]} Qb6 {[%emt 0:02:04]} 21. Bc1 {[%emt 0:03:41]} Qf6+ {[%emt 0:00:48]} 22. Kg1 {[%emt 0:01:48]} Bd4+ {[%emt 0:00:17]} 23. Kg2 {[%emt 0:00:26]} Qf2# {[%emt 0:00:08]} 0-1

[Event "European Womens-ch 2025"]
[Site "Rhodes"]
[Date "2025.03.31"]
[Round "1.67"]
[White "Prado Acebo, Ines"]
[Black "Revelioti, Eleni Nefeli"]
[Result "1-0"]
[Annotator "RC"]
[ECO "D06"]
[WhiteElo "2199"]
[BlackElo "1470"]
[PlyCount "53"]
[EventDate "2025.03.29"]
[EventType "swiss"]
[EventCountry "GRE"]
[SourceTitle "playchess.com"]
[Source "ChessBase"]
[SourceQuality "1"]
[TimeControl "40/5400+30:1800+30"]

1. Nf3 {[%emt 0:00:03]} Nf6 {[%emt 0:01:01]} 2. c4 {[%emt 0:00:07]} d5 {[%emt 0:00:45]} 3. cxd5 {[%emt 0:00:57]} Qxd5 {[%emt 0:00:56]} 4. Nc3 {[%emt 0:00:13]} Qd8 {[%emt 0:01:03]} 5. d4 {[%emt 0:01:55]} e6 {[%emt 0:01:46]} 6. e4 {[%emt 0:03:43]} Bb4 {[%emt 0:02:20]} 7. Bd3 {[%emt 0:02:15]} a5 {[%emt 0:01:22]} 8. O-O {[%emt 0:03:11]} h6 {[%emt 0:01:47]} 9. a3 {[%emt 0:04:11]} Bxc3 {[%emt 0:00:31]} 10. bxc3 {[%emt 0:00:08]} O-O {[%emt 0:00:17]} 11. Qe2 {[%emt 0:04:55]} b6 {[%emt 0:01:00]} 12. e5 {[%emt 0:01:15]} Nd5 {[%emt 0:04:09]} 13. c4 {[%emt 0:00:15]} Nc3 {[%emt 0:07:55]} 14. Qc2 {[%emt 0:00:15]} Bb7 {[%emt 0:00:49]} 15. Qxc3 {[%emt 0:00:17]} Bxf3 {[%emt 0:00:12]} 16. gxf3 {[%emt 0:00:14]} f6 {[%emt 0:00:21]} 17. Be4 {[%emt 0:01:31]} Ra7 {[%emt 0:00:47]} 18. f4 {[%emt 0:01:34]} f5 {[%emt 0:00:31]} 19. Bg2 {[%emt 0:00:17]} Nd7 {[%emt 0:00:40]} 20. Be3 {[%emt 0:02:59]} Rf7 {[%emt 0:02:46]} 21. d5 {[%emt 0:01:53]} Qe7 {[%emt 0:01:26]} 22. dxe6 {[%emt 0:00:25]} Qxe6 {[%emt 0:00:15]} 23. Bd5 {[%emt 0:00:29]} Qg6+ {[%emt 0:00:35]} 24. Kh1 {[%emt 0:00:12]} Nf8 {[%emt 0:04:01]} 25. Rg1 {[%emt 0:00:49]} Qh7 {[%emt 0:02:08]} 26. Rg3 {[%emt 0:00:54]} c5 {[%emt 0:02:11]} 27. Rag1 {[%emt 0:01:36]} 1-0